[Event "Titled Tuesday Blitz February 22 Late 2022"]
[White "Devaev, Alexander"]
[Black "Samarth, J Rao"]
[WhiteFideId "4169395"]
[BlackFideId "46652370"]
[WhiteElo "2185"]
[BlackElo "1514"]
[Result "1/2-1/2"]
[Round "02"]
[TimeControl "180+1"]
[Date "2022.02.23"]
[WhiteClock "0:00:03"]
[BlackClock "0:00:04"]

1. Nf3 {[%clk 0:03:00]}  d5 {[%clk 0:02:59]} 2. d4 {[%clk 0:03:01]}  Nf6 {[%clk 0:02:58]} 3. c4 {[%clk 0:03:01]}  e6 {[%clk 0:02:58]} 4. Nc3 {[%clk 0:03:02]}  c6 {[%clk 0:02:58]} 5. cxd5 {[%clk 0:03:02]}  exd5 {[%clk 0:02:58]} 6. Bg5 {[%clk 0:03:02]}  Nbd7 {[%clk 0:02:55]} 7. e3 {[%clk 0:03:02]}  h6 {[%clk 0:02:55]} 8. Bh4 {[%clk 0:03:01]}  Be7 {[%clk 0:02:56]} 9. Bd3 {[%clk 0:03:02]}  O-O {[%clk 0:02:56]} 10. Qc2 {[%clk 0:03:02]}  Re8 {[%clk 0:02:57]} 11. O-O {[%clk 0:03:01]}  Ne4 {[%clk 0:02:57]} 12. Bxe7 {[%clk 0:02:47]}  Qxe7 {[%clk 0:02:58]} 13. Bxe4 {[%clk 0:02:47]}  dxe4 {[%clk 0:02:59]} 14. Nd2 {[%clk 0:02:47]}  Nf6 {[%clk 0:02:57]} 15. a3 {[%clk 0:02:39]}  Bg4 {[%clk 0:02:33]} 16. Kh1 {[%clk 0:02:35]}  Bh5 {[%clk 0:02:32]} 17. b4 {[%clk 0:02:31]}  Bg6 {[%clk 0:02:31]} 18. Rab1 {[%clk 0:02:31]}  Rac8 {[%clk 0:02:30]} 19. Nc4 {[%clk 0:02:27]}  Nd5 {[%clk 0:02:28]} 20. Ne5 {[%clk 0:02:25]}  Bh7 {[%clk 0:02:27]} 21. Rfc1 {[%clk 0:02:21]}  Nxc3 {[%clk 0:02:25]} 22. Qxc3 {[%clk 0:02:21]}  f6 {[%clk 0:02:26]} 23. Nc4 {[%clk 0:02:00]}  Bg6 {[%clk 0:02:18]} 24. Na5 {[%clk 0:01:57]}  Bf7 {[%clk 0:02:16]} 25. Qc5 {[%clk 0:01:45]}  a6 {[%clk 0:01:42]} 26. Qb6 {[%clk 0:01:35]}  Rc7 {[%clk 0:01:26]} 27. a4 {[%clk 0:01:29]}  Rec8 {[%clk 0:01:24]} 28. Rc3 {[%clk 0:01:26]}  Bd5 {[%clk 0:00:59]} 29. Rbc1 {[%clk 0:01:26]}  Kf8 {[%clk 0:00:57]} 30. h3 {[%clk 0:01:18]}  Ke8 {[%clk 0:00:56]} 31. b5 {[%clk 0:01:17]}  axb5 {[%clk 0:00:55]} 32. axb5 {[%clk 0:01:18]}  Qb4 {[%clk 0:00:54]} 33. Nxb7 {[%clk 0:00:58]}  Qe7 {[%clk 0:00:27]} 34. bxc6 {[%clk 0:00:48]}  Qe6 {[%clk 0:00:18]} 35. Rc5 {[%clk 0:00:40]}  Rxc6 {[%clk 0:00:14]} 36. Rxc6 {[%clk 0:00:32]}  Rxc6 {[%clk 0:00:15]} 37. Rxc6 {[%clk 0:00:18]}  Qxc6 {[%clk 0:00:13]} 38. Qxc6+ {[%clk 0:00:10]}  Bxc6 {[%clk 0:00:13]} 39. Nc5 {[%clk 0:00:11]}  Ke7 {[%clk 0:00:12]} 40. g3 {[%clk 0:00:11]}  Kd6 {[%clk 0:00:10]} 41. Kh2 {[%clk 0:00:11]}  f5 {[%clk 0:00:09]} 42. g4 {[%clk 0:00:11]}  fxg4 {[%clk 0:00:06]} 43. hxg4 {[%clk 0:00:12]}  Kd5 {[%clk 0:00:06]} 44. Kg3 {[%clk 0:00:12]}  Be8 {[%clk 0:00:06]} 45. Kf4 {[%clk 0:00:10]}  Bc6 {[%clk 0:00:03]} 46. Nxe4 {[%clk 0:00:08]}  g5+ {[%clk 0:00:03]} 47. Kf5 {[%clk 0:00:05]}  Bd7+ {[%clk 0:00:03]} 48. Kg6 {[%clk 0:00:04]}  Kxe4 {[%clk 0:00:03]} 49. Kxh6 {[%clk 0:00:05]}  Bxg4 {[%clk 0:00:04]} 50. Kxg5 {[%clk 0:00:05]}  Be6 {[%clk 0:00:03]} 51. Kf6 {[%clk 0:00:03]}  Bc4 {[%clk 0:00:03]} 52. Ke7 {[%clk 0:00:03]}  Kf3 {[%clk 0:00:03]} 53. Kd6 {[%clk 0:00:01]}  Kxf2 {[%clk 0:00:03]} 54. e4 {[%clk 0:00:02]}  Ke3 {[%clk 0:00:04]} 55. e5 {[%clk 0:00:02]}  Kxd4 {[%clk 0:00:04]} 56. e6 {[%clk 0:00:03]}  Bxe6 {[%clk 0:00:04]} 1/2-1/2


[Site "https://www.chess.com"]

[Event "Titled Tuesday Blitz February 22 Late 2022"]
[White "Dounis, Alexandros"]
[Black "Vine, Elzbieta"]
[WhiteFideId "4213238"]
[BlackFideId "1119320"]
[WhiteElo "2195"]
[BlackElo "1877"]
[Result "1-0"]
[Round "02"]
[TimeControl "180+1"]
[Date "2022.02.23"]
[WhiteClock "0:01:29"]
[BlackClock "0:00:15"]

1. e4 {[%clk 0:03:00]}  c5 {[%clk 0:02:58]} 2. Nf3 {[%clk 0:02:56]}  d6 {[%clk 0:02:56]} 3. d4 {[%clk 0:02:52]}  cxd4 {[%clk 0:02:55]} 4. Nxd4 {[%clk 0:02:53]}  a6 {[%clk 0:02:53]} 5. c4 {[%clk 0:02:50]}  Nc6 {[%clk 0:02:52]} 6. Nc3 {[%clk 0:02:48]}  Nf6 {[%clk 0:02:51]} 7. Be2 {[%clk 0:02:44]}  g6 {[%clk 0:02:38]} 8. Be3 {[%clk 0:02:39]}  Bg7 {[%clk 0:02:37]} 9. O-O {[%clk 0:02:35]}  O-O {[%clk 0:02:36]} 10. Nc2 {[%clk 0:02:30]}  Be6 {[%clk 0:02:29]} 11. Rc1 {[%clk 0:02:22]}  Ne5 {[%clk 0:02:22]} 12. b3 {[%clk 0:02:20]}  Nfg4 {[%clk 0:02:08]} 13. Bd4 {[%clk 0:02:20]}  Rc8 {[%clk 0:02:00]} 14. f4 {[%clk 0:02:17]}  Nxh2 {[%clk 0:01:31]} 15. Kxh2 {[%clk 0:02:11]}  Nc6 {[%clk 0:01:30]} 16. Bxg7 {[%clk 0:02:10]}  Kxg7 {[%clk 0:01:30]} 17. f5 {[%clk 0:02:06]}  Bd7 {[%clk 0:01:24]} 18. f6+ {[%clk 0:02:03]}  exf6 {[%clk 0:01:23]} 19. Qxd6 {[%clk 0:02:03]}  Ne5 {[%clk 0:01:18]} 20. Nd5 {[%clk 0:02:01]}  Rc6 {[%clk 0:01:13]} 21. Qe7 {[%clk 0:01:50]}  Qb8 {[%clk 0:00:34]} 22. Nd4 {[%clk 0:01:42]}  Nd3+ {[%clk 0:00:25]} 23. Kh1 {[%clk 0:01:33]}  Nxc1 {[%clk 0:00:20]} 24. Nxc6 {[%clk 0:01:30]}  Bxc6 {[%clk 0:00:17]} 25. Qxf6+ {[%clk 0:01:29]}  Kg8 {[%clk 0:00:15]} 26. Ne7# {[%clk 0:01:29]} 1-0


[Site "https://www.chess.com"]

[Event "Titled Tuesday Blitz February 22 Late 2022"]
[White "Estrada Nieto, Julian"]
[Black "Winkels, Marcel"]
[WhiteFideId "5101018"]
[BlackFideId "1003887"]
[WhiteElo "2246"]
[BlackElo "1900"]
[Result "1-0"]
[Round "02"]
[TimeControl "180+1"]
[Date "2022.02.23"]
[WhiteClock "0:01:22"]
[BlackClock "0:00:34"]

1. e4 {[%clk 0:03:00]}  g6 {[%clk 0:02:59]} 2. d4 {[%clk 0:03:00]}  Bg7 {[%clk 0:02:59]} 3. Nc3 {[%clk 0:03:00]}  d5 {[%clk 0:02:59]} 4. exd5 {[%clk 0:02:58]}  Nf6 {[%clk 0:02:58]} 5. Bb5+ {[%clk 0:02:57]}  Nbd7 {[%clk 0:02:56]} 6. Nge2 {[%clk 0:02:55]}  O-O {[%clk 0:02:55]} 7. O-O {[%clk 0:02:54]}  Nb6 {[%clk 0:02:56]} 8. Nf4 {[%clk 0:02:44]}  Nbxd5 {[%clk 0:02:47]} 9. Nfxd5 {[%clk 0:02:44]}  Nxd5 {[%clk 0:02:47]} 10. Re1 {[%clk 0:02:38]}  Be6 {[%clk 0:02:40]} 11. Ne4 {[%clk 0:02:34]}  h6 {[%clk 0:02:38]} 12. c3 {[%clk 0:02:34]}  c6 {[%clk 0:02:37]} 13. Bd3 {[%clk 0:02:34]}  b6 {[%clk 0:02:27]} 14. h4 {[%clk 0:02:31]}  Rc8 {[%clk 0:02:21]} 15. h5 {[%clk 0:02:31]}  g5 {[%clk 0:02:17]} 16. Ng3 {[%clk 0:02:24]}  Qd7 {[%clk 0:02:02]} 17. Qf3 {[%clk 0:02:21]}  Bg4 {[%clk 0:01:59]} 18. Bf5 {[%clk 0:02:12]}  Bxf3 {[%clk 0:01:45]} 19. Bxd7 {[%clk 0:02:11]}  Rc7 {[%clk 0:01:43]} 20. Bf5 {[%clk 0:02:05]}  e6 {[%clk 0:01:38]} 21. Bc2 {[%clk 0:01:59]}  Bg4 {[%clk 0:01:36]} 22. f3 {[%clk 0:01:59]}  Bf5 {[%clk 0:01:29]} 23. Bxf5 {[%clk 0:01:59]}  exf5 {[%clk 0:01:28]} 24. Nxf5 {[%clk 0:01:59]}  b5 {[%clk 0:01:23]} 25. Bd2 {[%clk 0:01:55]}  a5 {[%clk 0:01:21]} 26. a4 {[%clk 0:01:53]}  b4 {[%clk 0:01:20]} 27. c4 {[%clk 0:01:51]}  Nf4 {[%clk 0:01:18]} 28. Bxf4 {[%clk 0:01:50]}  gxf4 {[%clk 0:01:18]} 29. Nxg7 {[%clk 0:01:47]}  Kxg7 {[%clk 0:01:17]} 30. Re4 {[%clk 0:01:47]}  Rd7 {[%clk 0:01:12]} 31. Rae1 {[%clk 0:01:46]}  Rfd8 {[%clk 0:01:09]} 32. Rd1 {[%clk 0:01:46]}  Rb8 {[%clk 0:00:59]} 33. b3 {[%clk 0:01:44]}  f5 {[%clk 0:00:50]} 34. Rxf4 {[%clk 0:01:43]}  Rf8 {[%clk 0:00:49]} 35. Kf2 {[%clk 0:01:39]}  Kf6 {[%clk 0:00:48]} 36. g4 {[%clk 0:01:39]}  Kg5 {[%clk 0:00:47]} 37. Rxf5+ {[%clk 0:01:39]}  Rxf5 {[%clk 0:00:46]} 38. gxf5 {[%clk 0:01:39]}  Kxf5 {[%clk 0:00:46]} 39. Ke3 {[%clk 0:01:37]}  Re7+ {[%clk 0:00:45]} 40. Kd3 {[%clk 0:01:36]}  Kf4 {[%clk 0:00:45]} 41. d5 {[%clk 0:01:25]}  cxd5 {[%clk 0:00:43]} 42. cxd5 {[%clk 0:01:25]}  Ke5 {[%clk 0:00:34]} 43. Re1+ {[%clk 0:01:22]}  Kd6 {[%clk 0:00:33]} 44. Rxe7 {[%clk 0:01:22]}  Kxe7 {[%clk 0:00:34]} 1-0


[Site "https://www.chess.com"]

[Event "Titled Tuesday Blitz February 22 Late 2022"]
[White "Ezat, Mohamed"]
[Black "Kobalia, Mikhail"]
[WhiteFideId "10600906"]
[BlackFideId "4119150"]
[WhiteElo "2386"]
[BlackElo "2667"]
[Result "1/2-1/2"]
[Round "02"]
[TimeControl "180+1"]
[Date "2022.02.22"]
[WhiteClock "0:00:32"]
[BlackClock "0:00:05"]

1. d4 {[%clk 0:03:00]}  d5 {[%clk 0:02:59]} 2. c4 {[%clk 0:03:01]}  c6 {[%clk 0:03:00]} 3. Nc3 {[%clk 0:03:01]}  dxc4 {[%clk 0:02:59]} 4. e4 {[%clk 0:02:57]}  b5 {[%clk 0:02:58]} 5. a4 {[%clk 0:02:56]}  b4 {[%clk 0:02:57]} 6. Na2 {[%clk 0:02:57]}  Nf6 {[%clk 0:02:52]} 7. e5 {[%clk 0:02:56]}  Nd5 {[%clk 0:02:52]} 8. Bxc4 {[%clk 0:02:57]}  e6 {[%clk 0:02:51]} 9. Nf3 {[%clk 0:02:57]}  a5 {[%clk 0:02:45]} 10. O-O {[%clk 0:02:56]}  Ba6 {[%clk 0:02:45]} 11. Bxa6 {[%clk 0:02:55]}  Nxa6 {[%clk 0:02:44]} 12. Be3 {[%clk 0:02:55]}  c5 {[%clk 0:02:43]} 13. Nc1 {[%clk 0:02:52]}  c4 {[%clk 0:02:40]} 14. Qe2 {[%clk 0:02:51]}  Rc8 {[%clk 0:02:39]} 15. Nd2 {[%clk 0:02:50]}  Qc7 {[%clk 0:02:35]} 16. Ncb3 {[%clk 0:02:46]}  Nb8 {[%clk 0:01:52]} 17. Rac1 {[%clk 0:02:38]}  c3 {[%clk 0:01:51]} 18. Ne4 {[%clk 0:02:37]}  Be7 {[%clk 0:01:47]} 19. bxc3 {[%clk 0:02:33]}  bxc3 {[%clk 0:01:35]} 20. Qb5+ {[%clk 0:02:33]}  Nd7 {[%clk 0:01:25]} 21. Nbc5 {[%clk 0:02:11]}  Rb8 {[%clk 0:00:38]} 22. Na6 {[%clk 0:01:54]}  Rxb5 {[%clk 0:00:19]} 23. Nxc7+ {[%clk 0:01:53]}  Nxc7 {[%clk 0:00:20]} 24. axb5 {[%clk 0:01:54]}  Nxb5 {[%clk 0:00:20]} 25. Nxc3 {[%clk 0:01:53]}  Nxc3 {[%clk 0:00:19]} 26. Rxc3 {[%clk 0:01:53]}  O-O {[%clk 0:00:18]} 27. Rc7 {[%clk 0:01:53]}  Rd8 {[%clk 0:00:18]} 28. Rd1 {[%clk 0:01:23]}  Bb4 {[%clk 0:00:13]} 29. Bg5 {[%clk 0:01:14]}  f6 {[%clk 0:00:13]} 30. exf6 {[%clk 0:01:14]}  Nxf6 {[%clk 0:00:12]} 31. Bxf6 {[%clk 0:01:11]}  gxf6 {[%clk 0:00:12]} 32. Rd3 {[%clk 0:01:10]}  a4 {[%clk 0:00:11]} 33. Rg3+ {[%clk 0:01:04]}  Kh8 {[%clk 0:00:11]} 34. Rgg7 {[%clk 0:01:03]}  Bf8 {[%clk 0:00:09]} 35. Rxh7+ {[%clk 0:01:01]}  Kg8 {[%clk 0:00:10]} 36. Rh3 {[%clk 0:00:56]}  Rxd4 {[%clk 0:00:08]} 37. Rg3+ {[%clk 0:00:55]}  Kh8 {[%clk 0:00:08]} 38. h4 {[%clk 0:00:53]}  Rd1+ {[%clk 0:00:06]} 39. Kh2 {[%clk 0:00:51]}  Bd6 {[%clk 0:00:06]} 40. Ra7 {[%clk 0:00:48]}  Rd4 {[%clk 0:00:05]} 41. Kh3 {[%clk 0:00:47]}  Bxg3 {[%clk 0:00:05]} 42. Kxg3 {[%clk 0:00:48]}  e5 {[%clk 0:00:04]} 43. f3 {[%clk 0:00:47]}  Rf4 {[%clk 0:00:04]} 44. Kh3 {[%clk 0:00:42]}  Kg8 {[%clk 0:00:04]} 45. g3 {[%clk 0:00:40]}  Rxf3 {[%clk 0:00:03]} 46. Rxa4 {[%clk 0:00:40]}  f5 {[%clk 0:00:03]} 47. Kg2 {[%clk 0:00:38]}  e4 {[%clk 0:00:03]} 48. g4 {[%clk 0:00:34]}  fxg4 {[%clk 0:00:03]} 49. Rxe4 {[%clk 0:00:34]}  Rf7 {[%clk 0:00:03]} 50. Rxg4+ {[%clk 0:00:33]}  Rg7 {[%clk 0:00:03]} 51. Kg3 {[%clk 0:00:32]}  Rxg4+ {[%clk 0:00:03]} 52. Kxg4 {[%clk 0:00:33]}  Kg7 {[%clk 0:00:04]} 53. Kg5 {[%clk 0:00:31]}  Kh7 {[%clk 0:00:05]} 54. Kf6 {[%clk 0:00:31]}  Kh6 {[%clk 0:00:05]} 55. h5 {[%clk 0:00:32]}  Kxh5 {[%clk 0:00:05]} 1/2-1/2


[Site "https://www.chess.com"]

[Event "Titled Tuesday Blitz February 22 Late 2022"]
[White "Farmani Anosheh, Armin"]
[Black "Csonka, Balazs"]
[WhiteFideId "24613240"]
[BlackFideId "742910"]
[WhiteElo "2289"]
[BlackElo "2404"]
[Result "0-1"]
[Round "02"]
[TimeControl "180+1"]
[Date "2022.02.23"]
[WhiteClock "0:00:58"]
[BlackClock "0:00:05"]

1. d4 {[%clk 0:03:00]}  Nf6 {[%clk 0:02:59]} 2. c4 {[%clk 0:03:01]}  g6 {[%clk 0:02:59]} 3. f3 {[%clk 0:03:01]}  d5 {[%clk 0:02:53]} 4. cxd5 {[%clk 0:03:01]}  Nxd5 {[%clk 0:02:54]} 5. e4 {[%clk 0:03:02]}  Nb6 {[%clk 0:02:54]} 6. Nc3 {[%clk 0:03:02]}  Bg7 {[%clk 0:02:54]} 7. Be3 {[%clk 0:03:03]}  O-O {[%clk 0:02:54]} 8. Qd2 {[%clk 0:03:04]}  Nc6 {[%clk 0:02:54]} 9. O-O-O {[%clk 0:03:04]}  Qd6 {[%clk 0:02:54]} 10. Nb5 {[%clk 0:03:00]}  Qd7 {[%clk 0:02:54]} 11. Na3 {[%clk 0:03:01]}  e5 {[%clk 0:02:28]} 12. d5 {[%clk 0:03:01]}  Nd4 {[%clk 0:02:27]} 13. f4 {[%clk 0:02:50]}  c5 {[%clk 0:02:16]} 14. fxe5 {[%clk 0:02:33]}  Bxe5 {[%clk 0:01:53]} 15. Nf3 {[%clk 0:02:33]}  Nxf3 {[%clk 0:01:38]} 16. gxf3 {[%clk 0:02:34]}  Na4 {[%clk 0:01:29]} 17. Bb5 {[%clk 0:02:31]}  Bxb2+ {[%clk 0:01:28]} 18. Qxb2 {[%clk 0:02:30]}  Nxb2 {[%clk 0:01:27]} 19. Bxd7 {[%clk 0:02:31]}  Nxd1 {[%clk 0:01:28]} 20. Kxd1 {[%clk 0:02:29]}  Bxd7 {[%clk 0:01:27]} 21. Bxc5 {[%clk 0:02:29]}  Rfe8 {[%clk 0:01:20]} 22. Re1 {[%clk 0:02:27]}  b6 {[%clk 0:01:18]} 23. Bd4 {[%clk 0:02:23]}  Rac8 {[%clk 0:01:17]} 24. Kd2 {[%clk 0:02:22]}  Ba4 {[%clk 0:01:01]} 25. Bf6 {[%clk 0:02:14]}  Rc7 {[%clk 0:00:40]} 26. d6 {[%clk 0:02:07]}  Rd7 {[%clk 0:00:37]} 27. e5 {[%clk 0:02:08]}  Re6 {[%clk 0:00:31]} 28. Kc3 {[%clk 0:01:23]}  Rdxd6 {[%clk 0:00:13]} 29. Nc4 {[%clk 0:01:22]}  Rd7 {[%clk 0:00:07]} 30. Kb4 {[%clk 0:01:17]}  Bc6 {[%clk 0:00:08]} 31. f4 {[%clk 0:01:17]}  Bd5 {[%clk 0:00:06]} 32. Nd6 {[%clk 0:01:13]}  Bxa2 {[%clk 0:00:05]} 33. Rc1 {[%clk 0:01:12]}  Rxf6 {[%clk 0:00:02]} 34. Rc8+ {[%clk 0:01:11]}  Kg7 {[%clk 0:00:02]} 35. Ne8+ {[%clk 0:01:12]}  Kh6 {[%clk 0:00:02]} 36. Nxf6 {[%clk 0:01:12]}  Rd4+ {[%clk 0:00:03]} 37. Ka3 {[%clk 0:01:11]}  Be6 {[%clk 0:00:03]} 38. Rh8 {[%clk 0:01:11]}  Rxf4 {[%clk 0:00:04]} 39. Nxh7 {[%clk 0:01:03]}  Kh5 {[%clk 0:00:03]} 40. h3 {[%clk 0:00:56]}  Kh4 {[%clk 0:00:03]} 41. Nf8+ {[%clk 0:00:53]}  Kg3 {[%clk 0:00:03]} 42. Nxe6 {[%clk 0:00:53]}  fxe6 {[%clk 0:00:04]} 43. Rh7 {[%clk 0:00:53]}  Rf5 {[%clk 0:00:03]} 44. Rxa7 {[%clk 0:00:53]}  Rxe5 {[%clk 0:00:04]} 45. Rg7 {[%clk 0:00:53]}  g5 {[%clk 0:00:04]} 46. Kb4 {[%clk 0:00:53]}  Kxh3 {[%clk 0:00:04]} 47. Rh7+ {[%clk 0:00:52]}  Kg3 {[%clk 0:00:03]} 48. Rb7 {[%clk 0:00:52]}  g4 {[%clk 0:00:03]} 49. Rxb6 {[%clk 0:00:52]}  Kf3 {[%clk 0:00:03]} 50. Kc3 {[%clk 0:00:53]}  g3 {[%clk 0:00:03]} 51. Kd2 {[%clk 0:00:53]}  g2 {[%clk 0:00:03]} 52. Rb3+ {[%clk 0:00:53]}  Kf2 {[%clk 0:00:03]} 53. Rb8 {[%clk 0:00:51]}  Rd5+ {[%clk 0:00:03]} 54. Kc3 {[%clk 0:00:51]}  g1=Q {[%clk 0:00:03]} 55. Rf8+ {[%clk 0:00:51]}  Ke1 {[%clk 0:00:03]} 56. Rf4 {[%clk 0:00:50]}  Qc5+ {[%clk 0:00:02]} 57. Rc4 {[%clk 0:00:50]}  Qe3+ {[%clk 0:00:02]} 58. Kb4 {[%clk 0:00:50]}  Qb6+ {[%clk 0:00:01]} 59. Kc3 {[%clk 0:00:50]}  Rc5 {[%clk 0:00:02]} 60. Rxc5 {[%clk 0:00:50]}  Qxc5+ {[%clk 0:00:03]} 61. Kd3 {[%clk 0:00:51]}  Qd5+ {[%clk 0:00:03]} 62. Kc3 {[%clk 0:00:51]}  e5 {[%clk 0:00:03]} 63. Kb4 {[%clk 0:00:52]}  e4 {[%clk 0:00:03]} 64. Kc3 {[%clk 0:00:53]}  Kd1 {[%clk 0:00:03]} 65. Kb4 {[%clk 0:00:54]}  e3 {[%clk 0:00:04]} 66. Kc3 {[%clk 0:00:55]}  e2 {[%clk 0:00:04]} 67. Kb2 {[%clk 0:00:55]}  Qc6 {[%clk 0:00:04]} 68. Ka3 {[%clk 0:00:56]}  e1=Q {[%clk 0:00:04]} 69. Kb2 {[%clk 0:00:57]}  Qb4+ {[%clk 0:00:04]} 70. Ka2 {[%clk 0:00:58]}  Qa6# {[%clk 0:00:05]} 0-1


[Site "https://www.chess.com"]

[Event "Titled Tuesday Blitz February 22 Late 2022"]
[White "Garagulya, Konstantin"]
[Black "Rangel, Daniel"]
[WhiteFideId "4128931"]
[BlackFideId "2124475"]
[WhiteElo "2329"]
[BlackElo "2187"]
[Result "1-0"]
[Round "02"]
[TimeControl "180+1"]
[Date "2022.02.23"]
[WhiteClock "0:01:51"]
[BlackClock "0:02:03"]

1. d4 {[%clk 0:03:00]}  Nf6 {[%clk 0:02:59]} 2. Nf3 {[%clk 0:03:01]}  g6 {[%clk 0:03:00]} 3. Nc3 {[%clk 0:03:00]}  Bg7 {[%clk 0:03:01]} 4. e4 {[%clk 0:03:01]}  O-O {[%clk 0:03:02]} 5. e5 {[%clk 0:03:01]}  d6 {[%clk 0:03:02]} 6. exf6 {[%clk 0:03:00]}  exf6 {[%clk 0:03:02]} 7. Be2 {[%clk 0:03:00]}  Nc6 {[%clk 0:03:01]} 8. O-O {[%clk 0:03:00]}  Bg4 {[%clk 0:03:02]} 9. h3 {[%clk 0:03:01]}  Bxf3 {[%clk 0:03:01]} 10. Bxf3 {[%clk 0:03:02]}  f5 {[%clk 0:03:02]} 11. Bxc6 {[%clk 0:02:56]}  bxc6 {[%clk 0:03:00]} 12. Ne2 {[%clk 0:02:55]}  Rb8 {[%clk 0:03:00]} 13. Rb1 {[%clk 0:02:51]}  Re8 {[%clk 0:02:59]} 14. c3 {[%clk 0:02:51]}  Qc8 {[%clk 0:02:59]} 15. Nf4 {[%clk 0:02:44]}  Qa6 {[%clk 0:02:52]} 16. a3 {[%clk 0:02:42]}  Re4 {[%clk 0:02:50]} 17. Qd3 {[%clk 0:02:36]}  Qb7 {[%clk 0:02:43]} 18. f3 {[%clk 0:02:34]}  Re7 {[%clk 0:02:41]} 19. b4 {[%clk 0:02:31]}  Rbe8 {[%clk 0:02:41]} 20. Bd2 {[%clk 0:02:30]}  h5 {[%clk 0:02:35]} 21. Rfe1 {[%clk 0:02:30]}  Bh6 {[%clk 0:02:29]} 22. Rxe7 {[%clk 0:02:28]}  Rxe7 {[%clk 0:02:30]} 23. Nd5 {[%clk 0:02:22]}  cxd5 {[%clk 0:02:26]} 24. Bxh6 {[%clk 0:02:23]}  Qc8 {[%clk 0:02:24]} 25. Bd2 {[%clk 0:02:17]}  Qe8 {[%clk 0:02:19]} 26. Kf2 {[%clk 0:02:17]}  Re6 {[%clk 0:02:18]} 27. Re1 {[%clk 0:02:16]}  Qe7 {[%clk 0:02:10]} 28. Qb5 {[%clk 0:02:08]}  Qh4+ {[%clk 0:02:07]} 29. Kf1 {[%clk 0:02:02]}  Qg3 {[%clk 0:02:03]} 30. Rxe6 {[%clk 0:01:54]}  fxe6 {[%clk 0:02:02]} 31. Qe8+ {[%clk 0:01:55]}  Kg7 {[%clk 0:02:02]} 32. Qe7+ {[%clk 0:01:53]}  Kg8 {[%clk 0:02:02]} 33. Qxe6+ {[%clk 0:01:53]}  Kg7 {[%clk 0:02:02]} 34. Qe7+ {[%clk 0:01:53]}  Kg8 {[%clk 0:02:03]} 35. Bh6 {[%clk 0:01:51]} 1-0


[Site "https://www.chess.com"]

[Event "Titled Tuesday Blitz February 22 Late 2022"]
[White "Gatterer, Florian"]
[Black "Cunha, Lucas Aguiar"]
[WhiteFideId "811688"]
[BlackFideId "2125404"]
[WhiteElo "2218"]
[BlackElo "2361"]
[Result "0-1"]
[Round "02"]
[TimeControl "180+1"]
[Date "2022.02.23"]
[WhiteClock "0:00:03"]
[BlackClock "0:00:09"]

1. b3 {[%clk 0:03:00]}  e5 {[%clk 0:02:59]} 2. Bb2 {[%clk 0:03:00]}  Nc6 {[%clk 0:02:59]} 3. Nf3 {[%clk 0:03:00]}  e4 {[%clk 0:02:58]} 4. Nd4 {[%clk 0:02:58]}  Qf6 {[%clk 0:02:59]} 5. e3 {[%clk 0:02:55]}  Bc5 {[%clk 0:02:56]} 6. c3 {[%clk 0:02:51]}  Nxd4 {[%clk 0:02:55]} 7. cxd4 {[%clk 0:02:48]}  Be7 {[%clk 0:02:55]} 8. d3 {[%clk 0:02:46]}  Bb4+ {[%clk 0:02:51]} 9. Bc3 {[%clk 0:02:40]}  Bxc3+ {[%clk 0:02:44]} 10. Nxc3 {[%clk 0:02:40]}  exd3 {[%clk 0:02:44]} 11. Bxd3 {[%clk 0:02:39]}  Ne7 {[%clk 0:02:41]} 12. O-O {[%clk 0:02:34]}  O-O {[%clk 0:02:39]} 13. Nb5 {[%clk 0:02:28]}  c6 {[%clk 0:02:38]} 14. Nc3 {[%clk 0:01:59]}  a5 {[%clk 0:02:38]} 15. Qc2 {[%clk 0:01:55]}  g6 {[%clk 0:02:33]} 16. Ne4 {[%clk 0:01:53]}  Qg7 {[%clk 0:02:03]} 17. f4 {[%clk 0:01:46]}  Nd5 {[%clk 0:02:00]} 18. Qd2 {[%clk 0:01:43]}  Re8 {[%clk 0:01:55]} 19. Rae1 {[%clk 0:01:39]}  Qf8 {[%clk 0:01:40]} 20. f5 {[%clk 0:01:31]}  d6 {[%clk 0:01:17]} 21. fxg6 {[%clk 0:01:25]}  hxg6 {[%clk 0:01:16]} 22. Nf6+ {[%clk 0:01:22]}  Nxf6 {[%clk 0:01:16]} 23. Rxf6 {[%clk 0:01:23]}  Qe7 {[%clk 0:01:13]} 24. Qf2 {[%clk 0:01:10]}  Kg7 {[%clk 0:00:53]} 25. Rf3 {[%clk 0:00:51]}  Be6 {[%clk 0:00:47]} 26. e4 {[%clk 0:00:48]}  Qg5 {[%clk 0:00:37]} 27. Rf1 {[%clk 0:00:47]}  Re7 {[%clk 0:00:37]} 28. Bc4 {[%clk 0:00:44]}  d5 {[%clk 0:00:31]} 29. h4 {[%clk 0:00:42]}  Qh5 {[%clk 0:00:26]} 30. Be2 {[%clk 0:00:29]}  Rh8 {[%clk 0:00:17]} 31. g3 {[%clk 0:00:26]}  dxe4 {[%clk 0:00:16]} 32. Rf6 {[%clk 0:00:18]}  Qd5 {[%clk 0:00:13]} 33. Rxg6+ {[%clk 0:00:18]}  Kxg6 {[%clk 0:00:09]} 34. Qf6+ {[%clk 0:00:18]}  Kh7 {[%clk 0:00:09]} 35. Qxe7 {[%clk 0:00:16]}  Qxd4+ {[%clk 0:00:09]} 36. Rf2 {[%clk 0:00:12]}  Rg8 {[%clk 0:00:09]} 37. Kf1 {[%clk 0:00:08]}  Qg7 {[%clk 0:00:09]} 38. Bh5 {[%clk 0:00:06]}  Qa1+ {[%clk 0:00:08]} 39. Kg2 {[%clk 0:00:05]}  Qc3 {[%clk 0:00:08]} 40. Bxf7 {[%clk 0:00:04]}  Qxg3+ {[%clk 0:00:07]} 41. Kf1 {[%clk 0:00:04]}  Qg1+ {[%clk 0:00:07]} 42. Ke2 {[%clk 0:00:04]}  Bg4+ {[%clk 0:00:08]} 43. Ke3 {[%clk 0:00:04]}  Qe1+ {[%clk 0:00:08]} 44. Kd4 {[%clk 0:00:04]}  Qxf2+ {[%clk 0:00:09]} 45. Ke5 {[%clk 0:00:04]}  Rg7 {[%clk 0:00:09]} 46. Bg6+ {[%clk 0:00:02]}  Kxg6 {[%clk 0:00:08]} 47. Qg5+ {[%clk 0:00:03]}  Kh7 {[%clk 0:00:09]} 48. Qh5+ {[%clk 0:00:03]}  Bxh5 {[%clk 0:00:09]} 0-1


[Site "https://www.chess.com"]

[Event "Titled Tuesday Blitz February 22 Late 2022"]
[White "Gerbelli Neto, Eduardo"]
[Black "Martin Barcelo, Carles"]
[WhiteFideId "2103281"]
[BlackFideId "24561444"]
[WhiteElo "2178"]
[BlackElo "1875"]
[Result "0-1"]
[Round "02"]
[TimeControl "180+1"]
[Date "2022.02.23"]
[WhiteClock "0:00:55"]
[BlackClock "0:00:53"]

1. e4 {[%clk 0:03:00]}  e6 {[%clk 0:02:58]} 2. d4 {[%clk 0:03:00]}  d5 {[%clk 0:02:59]} 3. Nc3 {[%clk 0:03:01]}  dxe4 {[%clk 0:02:55]} 4. Nxe4 {[%clk 0:03:01]}  Nd7 {[%clk 0:02:54]} 5. Nf3 {[%clk 0:03:00]}  Ngf6 {[%clk 0:02:54]} 6. Bg5 {[%clk 0:03:01]}  Be7 {[%clk 0:02:52]} 7. Nxf6+ {[%clk 0:03:00]}  Nxf6 {[%clk 0:02:50]} 8. Bd3 {[%clk 0:03:00]}  O-O {[%clk 0:02:48]} 9. Qe2 {[%clk 0:03:01]}  c5 {[%clk 0:02:47]} 10. O-O-O {[%clk 0:03:00]}  Qa5 {[%clk 0:02:45]} 11. Kb1 {[%clk 0:02:51]}  cxd4 {[%clk 0:02:45]} 12. h4 {[%clk 0:02:49]}  h6 {[%clk 0:02:33]} 13. Bd2 {[%clk 0:02:46]}  Qb6 {[%clk 0:02:26]} 14. g4 {[%clk 0:02:46]}  Nd5 {[%clk 0:02:20]} 15. Qe4 {[%clk 0:02:24]}  Nf6 {[%clk 0:02:09]} 16. Qe2 {[%clk 0:02:20]}  Nd5 {[%clk 0:02:08]} 17. Qe4 {[%clk 0:02:17]}  f5 {[%clk 0:02:08]} 18. gxf5 {[%clk 0:02:11]}  Nc3+ {[%clk 0:02:00]} 19. Bxc3 {[%clk 0:02:08]}  dxc3 {[%clk 0:02:01]} 20. b3 {[%clk 0:02:03]}  Rxf5 {[%clk 0:01:58]} 21. Rdg1 {[%clk 0:01:21]}  Qc5 {[%clk 0:01:20]} 22. Qg4 {[%clk 0:01:10]}  Bf6 {[%clk 0:01:13]} 23. Bxf5 {[%clk 0:00:56]}  Qa3 {[%clk 0:00:54]} 24. Bxe6+ {[%clk 0:00:55]}  Kh8 {[%clk 0:00:53]} 0-1


[Site "https://www.chess.com"]